fUST/lending_fUST_20250607
["ID","MTS","AMOUNT","RATE_DAILY","PERIOD"]
[364744460,1749227432221,-430.0,0.00019178,2]
[364744462,1749227432230,-430.0,0.00019178,2]
[364744463,1749227432239,-430.0,0.00019178,2]
[364744464,1749227432249,-430.0,0.00019178,2]
[364744465,1749227432263,-430.0,0.00019178,2]
[364744466,1749227432281,-148.93426575,0.00019178,2]
[364744467,1749227432295,-281.06573425,0.00019178,2]
[364744468,1749227432304,-186.44314004,0.00019178,2]
[364744469,1749227432313,-69.3132193,0.00019178,2]
[364744470,1749227432326,-360.6867807,0.00019178,2]
[364744472,1749227432336,-430.0,0.00019178,2]
[364744474,1749227432346,-440.0,0.00019178,2]
[364744476,1749227432355,-430.0,0.00019178,2]
[364744477,1749227432364,-490.0,0.00019178,2]
[364744479,1749227432374,-430.0,0.00019178,2]
[364744481,1749227432383,-440.0,0.00019178,2]
[364744482,1749227432392,-336.82939588,0.00019178,2]
[364744483,1749227432402,-440.0,0.00019178,2]
[364744484,1749227432411,-430.0,0.00019178,2]
[364744485,1749227432421,-440.0,0.00019178,2]
[364744486,1749227432431,-440.0,0.00019178,2]
[364744487,1749227432441,-430.0,0.00019178,2]
[364744488,1749227432450,-440.0,0.00019178,2]
[364744489,1749227432459,-440.0,0.00019178,2]
[364744490,1749227432469,-430.0,0.00019178,2]
[364744491,1749227432479,-430.0,0.00019178,2]
[364744492,1749227432489,-451.06,0.00019178,2]
[364744493,1749227432499,-431.55892203,0.00019178,2]
[364744494,1749227432508,-430.0,0.00019178,2]
[364744495,1749227432518,-440.0,0.00019178,2]
[364744496,1749227432527,-430.0,0.00019178,2]
[364744497,1749227432536,-430.0,0.00019178,2]
[364744498,1749227432546,-430.0,0.00019178,2]
[364744499,1749227432555,-440.0,0.00019178,2]
[364744500,1749227432564,-430.0,0.00019178,2]
[364744501,1749227432574,-430.0,0.00019178,2]
[364744502,1749227432585,-440.0,0.00019178,2]
[364744503,1749227432594,-440.0,0.00019178,2]
[364744504,1749227432604,-440.0,0.00019178,2]
[364744505,1749227432613,-430.0,0.00019178,2]
[364744506,1749227432622,-440.0,0.00019178,2]
[364744507,1749227432631,-430.0,0.00019178,2]
[364744508,1749227432640,-430.0,0.00019178,2]
[364744509,1749227432650,-430.0,0.00019178,2]
[364744510,1749227432659,-430.0,0.00019178,2]
[364744511,1749227432669,-420.0,0.00019178,2]
[364744512,1749227432678,-440.0,0.00019178,2]
[364744513,1749227432687,-463.42535671,0.00019178,2]
[364744514,1749227432696,-420.0,0.00019178,2]
[364744515,1749227432706,-210.12001961,0.00019178,2]
[364744516,1749227432715,-430.0,0.00019178,2]
[364744517,1749227432725,-430.0,0.00019178,2]
[364744518,1749227432734,-440.0,0.00019178,2]
[364744520,1749227432743,-440.0,0.00019178,2]
[364744522,1749227432753,-210.96170617,0.00019178,2]
[364744523,1749227432762,-430.0,0.00019178,2]
[364744524,1749227432772,-440.0,0.00019178,2]
[364744525,1749227432781,-440.0,0.00019178,2]
[364744526,1749227432791,-440.0,0.00019178,2]
[364744527,1749227432806,-500.0,0.00019178,2]
[364744528,1749227432816,-500.0,0.00019178,2]
[364744529,1749227432825,-430.0,0.00019178,2]
[364744530,1749227432836,-440.0,0.00019178,2]
[364744531,1749227432846,-430.0,0.00019178,2]
[364744532,1749227432855,-440.0,0.00019178,2]
[364744533,1749227432865,-727.02,0.00019178,2]
[364744534,1749227432876,-440.0,0.00019178,2]
[364744535,1749227432887,-440.0,0.00019178,2]
[364744536,1749227432896,-454.34,0.00019178,2]
[364744537,1749227432905,-726.17,0.00019178,2]
[364744538,1749227432915,-169.30264,0.00019178,2]
[364744539,1749227432926,-150.0,0.00019199,2]
[364744540,1749227432936,-440.0,0.00019452,2]
[364744541,1749227432945,-440.0,0.00019452,2]
[364744542,1749227432955,-440.0,0.00019452,2]
[364744543,1749227432964,-440.0,0.00019452,2]
[364744544,1749227432982,-1145.05,0.00019452,2]
[364744545,1749227432993,-420.0,0.00019452,2]
[364744546,1749227433003,-420.0,0.00019452,2]
[364744547,1749227433013,-420.0,0.00019452,2]
[364744548,1749227433025,-420.0,0.00019452,2]
[364744549,1749227433040,-420.0,0.00019452,2]
[364744550,1749227433050,-420.0,0.00019452,2]
[364744551,1749227433059,-420.0,0.00019452,2]
[364744552,1749227433069,-451.06,0.00019452,2]
[364744553,1749227433080,-440.0,0.00019452,2]
[364744554,1749227433089,-440.0,0.00019452,2]
[364744555,1749227433099,-440.0,0.00019452,2]
[364744556,1749227433108,-440.0,0.00019452,2]
[364744557,1749227433118,-420.0,0.00019452,2]
[364744558,1749227433127,-440.0,0.00019452,2]
[364744559,1749227433137,-440.0,0.00019452,2]
[364744560,1749227433147,-440.0,0.00019452,2]
[364744561,1749227433156,-430.0,0.00019452,2]
[364744562,1749227433166,-440.0,0.00019452,2]
[364744563,1749227433175,-420.0,0.00019452,2]
[364744564,1749227433185,-440.0,0.00019452,2]
[364744565,1749227433195,-420.0,0.00019452,2]
[364744566,1749227433205,-430.0,0.00019452,2]
[364744567,1749227433214,-727.02,0.00019452,2]
[364744568,1749227433224,-420.0,0.00019452,2]
[364744569,1749227433234,-440.0,0.00019452,2]
[364744570,1749227433244,-454.34,0.00019452,2]
[364744571,1749227433253,-726.17,0.00019452,2]
[364744572,1749227433263,-1483.36747716,0.00019675,2]
[364744573,1749227433406,-4212.44146603,0.00019675,2]
[364744574,1749227433416,-410.0,0.00019726,2]
[364744575,1749227433426,-1080.63340885,0.00019726,2]
[364744598,1749227437933,-332.97942887,0.00019178,2]
[364744611,1749227438043,-107.02057113,0.00019178,2]
[364744614,1749227438052,-420.0,0.00019452,2]
[364744617,1749227438061,-64.41659115,0.00019726,2]
[364744619,1749227438070,-451.06,0.00019726,2]
[364744621,1749227438080,-440.0,0.00019726,2]
[364744623,1749227438091,-440.0,0.00019726,2]
[364744625,1749227438100,-440.0,0.00019726,2]
[364744627,1749227438109,-440.0,0.00019726,2]
[364744629,1749227438119,-440.0,0.00019726,2]
[364744631,1749227438127,-249.72761378,0.00019726,2]
[364744633,1749227438137,-430.0,0.00019726,2]
[364744635,1749227438146,-440.0,0.00019726,2]
[364744638,1749227438156,-440.0,0.00019726,2]
[364744640,1749227438165,-727.02,0.00019726,2]
[364744642,1749227438175,-440.0,0.00019726,2]
[364744644,1749227438184,-454.34,0.00019726,2]
[364744646,1749227438193,-726.17,0.00019726,2]
[364744647,1749227438202,-440.0,0.00019854,2]
[364744649,1749227438211,-440.0,0.00019854,2]
[364744651,1749227438221,-430.0,0.00019854,2]
[364744653,1749227438233,-430.0,0.00019854,2]
[364744656,1749227438247,-440.0,0.00019854,2]
[364744658,1749227438258,-430.0,0.00019854,2]
[364744660,1749227438267,-275.13309956,0.00019854,2]
[364744662,1749227438277,-306.92071621,0.00019854,2]
[364744664,1749227438291,-430.0,0.00019854,2]
[364744666,1749227438300,-440.0,0.00019854,2]
[364744668,1749227438310,-477.86246572,0.00019854,2]
[364744670,1749227438319,-430.0,0.00019854,2]
[364744672,1749227438328,-430.0,0.00019854,2]
[364744674,1749227438338,-440.0,0.00019854,2]
[364744676,1749227438348,-440.0,0.00019854,2]
[364744677,1749227438357,-440.0,0.00019854,2]
[364744679,1749227438367,-440.0,0.00019854,2]
[364744681,1749227438376,-430.0,0.00019854,2]
[364744683,1749227438385,-430.0,0.00019854,2]
[364744686,1749227438395,-430.0,0.00019854,2]
[364744688,1749227438405,-430.0,0.00019854,2]
[364744690,1749227438414,-447.08012644,0.00019854,2]
[364744692,1749227438423,-430.0,0.00019854,2]
[364744694,1749227438433,-440.0,0.00019854,2]
[364744696,1749227438442,-430.0,0.00019854,2]
[364744698,1749227438452,-430.0,0.00019854,2]
[364744700,1749227438461,-536.80791853,0.00019854,2]
[364744702,1749227438471,-382.77796731,0.00019854,2]
[364744704,1749227438480,-430.0,0.00019854,2]
[364744706,1749227438489,-440.0,0.00019854,2]
[364744708,1749227438498,-440.0,0.00019854,2]
[364744710,1749227438507,-430.0,0.00019854,2]
[364744712,1749227438517,-440.0,0.00019854,2]
[364744714,1749227438526,-440.0,0.00019854,2]
[364744716,1749227438535,-430.0,0.00019854,2]
[364744718,1749227438545,-430.0,0.00019854,2]
[364744720,1749227438554,-430.0,0.00019854,2]
[364744722,1749227438563,-988.11,0.00019854,2]
[364744724,1749227438573,-430.0,0.00019854,2]
[364744726,1749227438582,-522.02060256,0.00019854,2]
[364744728,1749227438592,-440.0,0.00019854,2]
[364744730,1749227438601,-430.0,0.00019854,2]
[364744732,1749227438610,-24900.0,0.00019855,2]
[364744733,1749227438619,-555.17,0.0001999,3]
[364744735,1749227438630,-1145.05,0.0002,2]
[364744738,1749227438640,-451.06,0.0002,2]
[364744740,1749227438652,-440.0,0.0002,2]
[364744742,1749227438666,-420.0,0.0002,2]
[364744744,1749227438675,-2535.35995879,0.0002,2]
[364744746,1749227438687,-6090.36672383,0.0002,2]
[364744748,1749227438699,-8410.03168886,0.0002,2]
[364744750,1749227438710,-1088.96349888,0.0002,2]
[364744936,1749227440485,-519.12034278,0.00019853,2]
[364744938,1749227440495,-115.17581338,0.0002,2]
[364745172,1749227443065,-26419.37876712,0.0002,2]
[364745179,1749227443121,-3194.4368,0.0002,2]
[364745336,1749227444532,2114.63990035,0.000189,2]
[364745469,1749227446108,-440.0,0.00019178,2]
[364745470,1749227446118,-440.0,0.00019452,2]
[364745471,1749227446127,-10.46299262,0.00019726,2]
[364745472,1749227446632,-429.53700738,0.00019726,2]
[364745473,1749227446642,-103.30070426,0.0002,2]
[364748955,1749227514776,154.22519529,6.8e-07,2]
[364748958,1749227533224,497.214096,0.00013699,2]
[364748959,1749227545096,383.13319583,0.00018906,2]
[364748960,1749227545118,19018.6538,0.00018906,2]
[364748961,1749227545139,5498.21300417,0.00018906,2]
[364748967,1749227672798,181.0,0.00016438,3]
[364748968,1749227703107,499.999999,0.00019,2]
[364748969,1749227703140,10430.0,0.000156,2]
[364748971,1749227745787,2092.71079457,0.000189,2]
[364748972,1749227790717,316.73000226,0.00018622,2]
[364748973,1749227790740,150.05631774,0.00018622,2]
[364748974,1749227986891,173.0,0.00016438,3]
[364748975,1749228025824,345.0,0.00019,2]
[364748976,1749228047079,1395.14052971,0.000189,2]
[364748979,1749228111820,194.09338549,0.00018603,2]
[364748980,1749228164122,16761.36356706,0.00018271,2]
[364748981,1749228164146,2855.97443294,0.00018271,2]
[364748982,1749228333240,1188.3646529,0.00018455,2]
[364748983,1749228348465,930.09368647,0.000189,2]
[364748984,1749228426357,659.2995302,0.00018251,2]
[364748985,1749228545785,13384.92149749,0.00018226,2]
[364748986,1749228545807,4453.40667631,0.00018226,2]
[364748987,1749228567112,168.8520601,0.00018371,2]
[364748988,1749228570800,501.091234,0.00013699,2]
[364748994,1749228594835,157.69521078,0.00018977,3]
[364748995,1749228602967,873.259863,0.00018177,2]
[364749045,1749228632267,-160.47140235,0.00019076,2]
[364749046,1749228632277,-160.47140234,0.00019077,2]
[364749049,1749228632286,-164.4103884,0.00019078,2]
[364749051,1749228632300,-300.0,0.00019176,2]
[364749053,1749228632309,-1200.0,0.00019176,2]
[364749055,1749228632318,-300.0,0.00019176,2]
[364749057,1749228632328,-300.0,0.00019176,2]
[364749058,1749228632338,-300.0,0.00019176,2]
[364749060,1749228632347,-257.97339564,0.00019177,2]
[364749062,1749228632357,-500.0,0.00019177,2]
[364749064,1749228632366,-500.0,0.00019177,2]
[364749065,1749228632375,-500.0,0.00019177,2]
[364749067,1749228632386,-394.98746746,0.00019177,2]
[364749070,1749228632396,-500.0,0.00019177,2]
[364749071,1749228632405,-500.0,0.00019177,2]
[364749073,1749228632414,-500.0,0.00019177,2]
[364749076,1749228632424,-500.0,0.00019177,2]
[364749078,1749228632434,-500.0,0.00019177,2]
[364749080,1749228632443,-500.0,0.00019177,2]
[364749082,1749228632453,-500.0,0.00019177,2]
[364749084,1749228632462,-500.0,0.00019177,2]
[364749086,1749228632472,-500.0,0.00019177,2]
[364749088,1749228632481,-500.0,0.00019177,2]
[364749090,1749228632491,-633.96347942,0.00019177,2]
[364749092,1749228632500,-500.0,0.00019177,2]
[364749094,1749228632509,-500.0,0.00019177,2]
[364749096,1749228632518,-183.93799025,0.00019177,2]
[364749098,1749228632528,-500.0,0.00019177,2]
[364749100,1749228632538,-358.35450349,0.00019177,2]
[364749102,1749228632547,-500.0,0.00019177,2]
[364749104,1749228632557,-500.0,0.00019177,2]
[364749106,1749228632566,-624.85139549,0.00019177,2]
[364749108,1749228632575,-440.0,0.00019178,2]
[364749110,1749228632584,-440.0,0.00019178,2]
[364749112,1749228632593,-188.12906042,0.00019178,2]
[364749114,1749228632602,-440.0,0.00019178,2]
[364749116,1749228632612,-440.0,0.00019178,2]
[364749118,1749228632621,-361.02,0.00019178,2]
[364749120,1749228632630,-1456.07,0.00019178,2]
[364749122,1749228632639,-440.0,0.00019178,2]
[364749123,1749228632649,-430.0,0.00019178,2]
[364749125,1749228632658,-440.0,0.00019178,2]
[364749127,1749228632667,-430.0,0.00019178,2]
[364749129,1749228632677,-440.0,0.00019178,2]
[364749131,1749228632686,-440.0,0.00019178,2]
[364749133,1749228632695,-430.0,0.00019178,2]
[364749135,1749228632705,-430.0,0.00019178,2]
[364749137,1749228632714,-440.0,0.00019178,2]
[364749139,1749228632723,-440.0,0.00019178,2]
[364749141,1749228632733,-1027.54,0.00019178,2]
[364749143,1749228632742,-430.0,0.00019178,2]
[364749145,1749228632751,-440.0,0.00019178,2]
[364749147,1749228632760,-430.0,0.00019178,2]
[364749149,1749228632769,-485.37,0.00019178,2]
[364749151,1749228632778,-533.64831665,0.00019178,2]
[364749153,1749228632787,-430.0,0.00019178,2]
[364749155,1749228632797,-440.0,0.00019178,2]
[364749157,1749228632806,-430.0,0.00019178,2]
[364749159,1749228632815,-430.0,0.00019178,2]
[364749161,1749228632824,-430.0,0.00019178,2]
[364749163,1749228632834,-440.0,0.00019178,2]
[364749165,1749228632843,-430.0,0.00019178,2]
[364749167,1749228632852,-430.0,0.00019178,2]
[364749170,1749228632863,-430.0,0.00019178,2]
[364749172,1749228632874,-430.0,0.00019178,2]
[364749174,1749228632883,-560.99225664,0.00019178,2]
[364749176,1749228632892,-430.0,0.00019178,2]
[364749177,1749228632901,-430.0,0.00019178,2]
[364749180,1749228632911,-430.0,0.00019178,2]
[364749182,1749228632919,-552.65960666,0.00019178,2]
[364749184,1749228632929,-715.88,0.00019178,2]
[364749186,1749228632939,-440.0,0.00019178,2]
[364749188,1749228632948,-430.0,0.00019178,2]
[364749190,1749228632958,-430.0,0.00019178,2]
[364749192,1749228632967,-430.0,0.00019178,2]
[364749194,1749228632977,-74.46652686,0.00019178,2]
[364749197,1749228633002,-355.53347314,0.00019178,2]
[364749199,1749228633013,-430.0,0.00019178,2]
[364749202,1749228633024,-511.41,0.00019178,2]
[364749204,1749228633034,-440.0,0.00019178,2]
[364749206,1749228633044,-430.0,0.00019178,2]
[364749208,1749228633054,-430.0,0.00019178,2]
[364749210,1749228633064,-414.74852935,0.00019178,2]
[364749212,1749228633074,-430.0,0.00019178,2]
[364749214,1749228633084,-440.0,0.00019178,2]
[364749216,1749228633093,-440.0,0.00019178,2]
[364749218,1749228633102,-430.0,0.00019178,2]
[364749220,1749228633115,-440.0,0.00019178,2]
[364749222,1749228633125,-440.0,0.00019178,2]
[364749224,1749228633135,-532.68279812,0.00019178,2]
[364749226,1749228633146,-430.0,0.00019178,2]
[364749228,1749228633156,-430.0,0.00019178,2]
[364749231,1749228633166,-430.0,0.00019178,2]
[364749233,1749228633176,-440.0,0.00019178,2]
[364749235,1749228633186,-430.0,0.00019178,2]
[364749237,1749228633195,-420.0,0.00019178,2]
[364749239,1749228633205,-440.0,0.00019178,2]
[364749241,1749228633214,-500.0,0.00019178,2]
[364749243,1749228633226,-440.0,0.00019178,2]
[364749245,1749228633236,-430.0,0.00019178,2]
[364749246,1749228633245,-175.1,0.00019178,2]
[364749248,1749228633255,-440.0,0.00019178,2]
[364749250,1749228633265,-440.0,0.00019178,2]
[364749251,1749228633275,-440.0,0.00019178,2]
[364749253,1749228633285,-430.0,0.00019178,2]
[364749255,1749228633295,-440.0,0.00019178,2]
[364749257,1749228633307,-430.0,0.00019178,2]
[364749259,1749228633317,-430.0,0.00019178,2]
[364749261,1749228633327,-1033.78,0.00019178,2]
[364749263,1749228633336,-430.0,0.00019178,2]
[364749265,1749228633346,-430.0,0.00019178,2]
[364749267,1749228633357,-430.0,0.00019178,2]
[364749269,1749228633367,-636.14,0.00019178,2]
[364749272,1749228633377,-440.0,0.00019178,2]
[364749274,1749228633386,-440.0,0.00019178,2]
[364749276,1749228633398,-440.0,0.00019178,2]
[364749278,1749228633407,-440.0,0.00019178,2]
[364749280,1749228633416,-430.0,0.00019178,2]
[364749282,1749228633426,-440.0,0.00019178,2]
[364749284,1749228633436,-440.0,0.00019178,2]
[364749286,1749228633447,-440.0,0.00019178,2]
[364749288,1749228633456,-440.0,0.00019178,2]
[364749290,1749228633468,-430.0,0.00019178,2]
[364749292,1749228633478,-237.27290918,0.00019178,2]
[364749556,1749228638107,-192.72709082,0.00019178,2]
[364749557,1749228638120,-686.05,0.00019178,2]
[364749558,1749228638130,-169.30264,0.00019178,2]
[364749559,1749228638140,-150.0,0.00019195,2]
[364749560,1749228638150,-440.0,0.00019451,2]
[364749561,1749228638160,-440.0,0.00019451,2]
[364749562,1749228638170,-430.0,0.00019452,2]
[364749563,1749228638180,-440.0,0.00019452,2]
[364749564,1749228638189,-1456.07,0.00019452,2]
[364749565,1749228638199,-440.0,0.00019452,2]
[364749566,1749228638208,-202.5902681,0.00019452,2]
[364749567,1749228638219,-420.0,0.00019452,2]
[364749568,1749228638232,-440.0,0.00019452,2]
[364749569,1749228638241,-363.8017678,0.00019452,2]
[364749570,1749228638250,-440.0,0.00019452,2]
[364749571,1749228638259,-1027.54,0.00019452,2]
[364749572,1749228638270,-440.0,0.00019452,2]
[364749573,1749228638280,-440.0,0.00019452,2]
[364749574,1749228638290,-278.36793314,0.00019452,2]
[364749576,1749228638300,-440.0,0.00019452,2]
[364749577,1749228638310,-511.41,0.00019452,2]
[364749578,1749228638320,-440.0,0.00019452,2]
[364749579,1749228638329,-440.0,0.00019452,2]
[364749580,1749228638339,-420.0,0.00019452,2]
[364749581,1749228638348,-440.0,0.00019452,2]
[364749582,1749228638357,-440.0,0.00019452,2]
[364749583,1749228638370,-440.0,0.00019452,2]
[364749584,1749228638379,-440.0,0.00019452,2]
[364749585,1749228638389,-548.87559801,0.00019452,2]
[364749586,1749228638398,-440.0,0.00019452,2]
[364749587,1749228638408,-440.0,0.00019452,2]
[364749588,1749228638418,-440.0,0.00019452,2]
[364749589,1749228638427,-440.0,0.00019452,2]
[364749590,1749228638437,-1033.78,0.00019452,2]
[364749591,1749228638446,-636.14,0.00019452,2]
[364749592,1749228638456,-440.0,0.00019452,2]
[364749593,1749228638464,-440.0,0.00019452,2]
[364749594,1749228638474,-440.0,0.00019452,2]
[364749595,1749228638483,-440.0,0.00019452,2]
[364749596,1749228638492,-440.0,0.00019452,2]
[364749597,1749228638501,-420.0,0.00019452,2]
[364749598,1749228638510,-440.0,0.00019452,2]
[364749599,1749228638518,-420.0,0.00019452,2]
[364749600,1749228638527,-686.05,0.00019452,2]
[364749601,1749228638537,-440.0,0.00019725,2]
[364749602,1749228638547,-440.0,0.00019725,2]
[364749603,1749228638556,-363.38423995,0.00019725,2]
[364749604,1749228638565,-179.64529107,0.00019726,2]
[364749911,1749228643240,-347.24485144,0.00019726,2]
[364749913,1749228643250,-17.19579986,0.00019726,2]
[364750584,1749228649813,620.06245765,0.000189,2]
[364751454,1749228663510,347.1527944,0.00018917,2]
[364751456,1749228793959,150.0,0.0001864,2]
[364751457,1749228798357,765.3183213,0.00018847,2]
[364751458,1749228873033,150.0,0.00015876,2]
[364751459,1749228873498,150.0,0.00016632,2]
[364751460,1749228873803,207.79,0.00017388,2]
[364751461,1749228874158,277.05,0.00018144,2]
[364751462,1749228874572,346.31,0.000189,2]
[364751464,1749228950290,150.0,0.00015876,2]
[364751465,1749228950738,150.0,0.00016632,2]
[364751466,1749228951148,170.33,0.00017388,2]
[364751467,1749228951176,413.37497177,0.000189,2]
[364751468,1749228951572,227.1,0.00018144,2]
[364751469,1749228952019,283.88,0.000189,2]
[364751470,1749229023552,150.0,0.00015926,2]
[364751471,1749229024030,150.0,0.00016684,2]
[364751472,1749229024429,150.0,0.00017443,2]
[364751473,1749229024859,177.14,0.00018201,2]
[364751474,1749229025272,221.43,0.00018959,2]
[364751476,1749229098048,150.0,0.00015967,2]
[364751477,1749229098456,150.0,0.00016727,2]
[364751478,1749229098846,150.0,0.00017487,2]
[364751479,1749229099246,150.0,0.00018248,2]
[364751481,1749229171537,488.77969974,0.0001893,2]
[364751482,1749229173119,150.0,0.00015979,2]
[364751483,1749229173581,150.0,0.0001674,2]
[364751484,1749229174021,150.0,0.00017501,2]
[364751485,1749229174451,150.0,0.00018262,2]
[364751487,1749229245353,150.0,0.00015915,2]
[364751488,1749229245748,150.0,0.00016673,2]
[364751489,1749229246176,150.0,0.00017431,2]
[364751490,1749229250024,150.0,0.00018188,2]
[364751491,1749229252507,462.20862385,0.000189,2]
[364751492,1749229318862,229.03511887,0.00018985,2]
[364751493,1749229323599,150.0,0.00015913,2]
[364751494,1749229323999,150.0,0.00016671,2]
[364751495,1749229324950,150.0,0.00017429,2]
[364751496,1749229325377,150.0,0.00018187,2]
[364751497,1749229396768,150.0,0.00015915,2]
[364751498,1749229397359,150.0,0.00016673,2]
[364751499,1749229397922,150.0,0.00017431,2]
[364751500,1749229398357,150.0,0.00018189,2]
[364751505,1749229466321,150.0,0.00015909,2]
[364751506,1749229466740,150.0,0.00016667,2]
[364751507,1749229467160,150.0,0.00017424,2]
[364751508,1749229519226,2977.38676823,0.00018156,2]
[364751509,1749229519250,1777.45687907,0.00018156,2]
[364751510,1749229527712,367.2917299,0.00018305,2]
[364751511,1749229541103,174.89263819,0.00016438,3]
[364751512,1749229541428,150.0,0.00015915,2]
[364751513,1749229541837,150.0,0.00016673,2]
[364751514,1749229542317,150.0,0.00017431,2]
[364751515,1749229542717,150.0,0.00018189,2]
[364751516,1749229553804,685.657132,0.000189,2]
[364751517,1749229555163,15413.35542084,0.0001816,2]
[364751518,1749229555186,9486.64457916,0.0001816,2]
[364751519,1749229613604,150.0,0.00015921,2]
[364751520,1749229614544,150.0,0.00016679,2]
[364751521,1749229614966,150.0,0.00017438,2]
[364751522,1749229615497,150.0,0.00018196,2]
[364751523,1749229616711,180.66883505,6.8e-07,2]
[364751525,1749229625547,667.938894,0.00018147,2]
[364751526,1749229629124,-150.0,0.00019023,2]
[364751527,1749229629146,-293.77507321,0.00019023,2]
[364751528,1749229629171,-800.0,0.00019064,2]
[364751529,1749229629194,-800.0,0.00019085,2]
[364751530,1749229629219,-800.0,0.00019091,2]
[364751531,1749229629245,-400.0,0.00019134,2]
[364751532,1749229629270,-800.0,0.00019151,2]
[364751533,1749229629292,-800.0,0.00019165,2]
[364751534,1749229629315,-300.0,0.00019171,2]
[364751535,1749229629338,-300.0,0.00019171,2]
[364751536,1749229629363,-300.0,0.00019172,2]
[364751537,1749229629385,-300.0,0.00019172,2]
[364751538,1749229629407,-300.0,0.00019172,2]
[364751539,1749229629429,-1200.0,0.00019172,2]
[364751540,1749229629450,-254.36896796,0.00019172,2]
[364751541,1749229629475,-420.08423515,0.00019172,2]
[364751542,1749229629499,-2072.87907041,0.00019172,2]
[364751543,1749229629520,-470.17923748,0.00019172,2]
[364751544,1749229629547,-2072.87907041,0.00019172,2]
[364751545,1749229629571,-2072.87907041,0.00019172,2]
[364751546,1749229629595,-2072.87907041,0.00019172,2]
[364751547,1749229629619,-2072.87907041,0.00019172,2]
[364751548,1749229629644,-2072.87907041,0.00019172,2]
[364751549,1749229629667,-2072.87907041,0.00019172,2]
[364751550,1749229629690,-2072.87907041,0.00019172,2]
[364751551,1749229629715,-2072.87907041,0.00019172,2]
[364751552,1749229629738,-2072.87907041,0.00019172,2]
[364751553,1749229629760,-2072.87907041,0.00019172,2]
[364751554,1749229629784,-2072.87907041,0.00019172,2]
[364751555,1749229629806,-59.4386152,0.00019172,2]
[364751557,1749229637679,487.229043,0.00013699,2]
[364751558,1749229647141,-1000.64776702,0.00019171,2]
[364751559,1749229647165,-2013.44045521,0.00019172,2]
[364751560,1749229647187,-2072.87907041,0.00019172,2]
[364751561,1749229647211,-2072.87907041,0.00019172,2]
[364751562,1749229647235,-2072.87907041,0.00019172,2]
[364751564,1749229647257,-2072.87907041,0.00019172,2]
[364751565,1749229647279,-2072.87907041,0.00019172,2]
[364751566,1749229647301,-2072.87907041,0.00019172,2]
[364751567,1749229647324,-2072.87907041,0.00019172,2]
[364751568,1749229647347,-2072.87907041,0.00019172,2]
[364751569,1749229647370,-1409.07338243,0.00019172,2]
[364751570,1749229692016,213.90470002,0.00018923,2]
[364751571,1749229781000,633.2867016,0.00018175,2]
[364751607,1749229832386,-165.10765569,0.00019072,2]
[364751609,1749229832395,-300.0,0.0001917,2]
[364751611,1749229832405,-300.0,0.0001917,2]
[364751614,1749229832416,-200.0,0.0001917,2]
[364751615,1749229832425,-1200.0,0.0001917,2]